[Event "GER-ch Youth U14W 2020"]
[Site "Willingen"]
[Date "2020.10.21"]
[Round "2.3"]
[White "Pohle, Saskia"]
[Black "Wagner, Margarethe"]
[Result "1/2-1/2"]
[ECO "B90"]
[WhiteElo "1749"]
[BlackElo "1804"]
[Annotator "NA RC"]
[PlyCount "85"]
[EventDate "2020.10.20"]
[EventType "swiss"]
[EventRounds "7"]
[EventCountry "GER"]
[SourceTitle "playchess.com"]
[Source "ChessBase"]
[SourceQuality "1"]
[TimeControl "40/5400+30:1800+30"]

{[%evp 11,79,10,12,5,32767,32767,8,32767,0,4,32767,0,21,32767,46,31,54,60,69,68,80,80,120,75,97,117,133,139,153,89,210,151,231,18,132,122,198,215,226,242,32767,431,32767,361,32767,32767,32767,32767,32767,339,32767,32767,301,299,290,32767,410,32767,32767,210,428,0,0,0,32767,32767,32767,32767,-321,-584]} 1. e4 {[%emt 0:00:00]} c5 {[%emt 0:00:00]} 2. Nf3 {[%emt 0:00:00]} d6 {[%emt 0:00:00]} 3. d4 {[%emt 0:00:00]} cxd4 {[%emt 0:00:00]} 4. Nxd4 {[%emt 0:00:00]} Nf6 {[%emt 0:00:00]} 5. Nc3 {[%emt 0:00:00]} a6 {[%emt 0:00:00]} 6. h3 {[%emt 0:00:07]} e5 {[%emt 0:02:09]} 7. Nb3 {[%emt 0:00:08]} Be7 {[%emt 0:00:42] B90: Sicilian Najdorf: Unusual White 6th moves, 6 Be3 Ng4 and 6 Be3 e5.} 8. Be3 {[%emt 0:00:13]} Be6 {[%emt 0:01:43]} 9. f4 {[%emt 0:00:39]} exf4 {[%emt 0:02:06]} 10. Bxf4 {[%emt 0:00:10]} Nc6 {[%emt 0:00:45]} 11. Qe2 {[%emt 0:02:31]} Ne5 {[%emt 0:03:53]} 12. O-O-O {[%emt 0:00:42]} Qc7 {[%emt 0:02:00] 12...Nfd7 injects fresh life into this line.} 13. g4 {[%emt 0:02:20]} h6 {[%emt 0:06:33]} 14. Qg2 {[%emt 0:01:57]} b5 {[%emt 0:05:58] [#]} 15. Nd5 $146 {[%emt 0:04:53]} ({Predecessor:} 15. Nd4 O-O 16. Kb1 Rac8 17. Nd5 Bxd5 18. exd5 Nfd7 19. Be2 Nb6 20. h4 Ng6 21. Bc1 {1-0 (33) Dijkhuis,T (2327)-Gieben,S (2134) Vlissingen 2014}) 15... Bxd5 {[%emt 0:02:59]} 16. exd5 {[%emt 0:00:07]} Nfd7 {[%emt 0:06:49]} 17. Nd4 {[%emt 0:03:44]} Ng6 {[%emt 0:14:26]} 18. Bg3 {[%emt 0:05:01]} Nde5 {[%emt 0:03:38]} 19. h4 {[%emt 0:05:31]} Bf6 {[%emt 0:05:30]} 20. Kb1 {[%emt 0:07:25]} Rc8 $2 {[%emt 0:06:55]} (20... Nxg4 $14 21. Qe4+ N4e5) 21. Re1 {[%emt 0:03:26]} Kf8 {[%emt 0:01:21]} 22. Rc1 {[%emt 0:15:06]} (22. Nf5 $16) 22... Nc4 {[%emt 0:07:28] [#]} (22... Nxg4 $11 {keeps the balance.} 23. h5 Ne7) 23. Bxc4 $1 {[%emt 0:03:00]} bxc4 {[%emt 0:02:03]} (23... Bxd4 $16 24. Bb3 Re8) 24. Nc6 {[%emt 0:02:33]} c3 {[%emt 0:02:48]} 25. b3 {[%emt 0:03:10]} Ne5 {[%emt 0:02:55] [#]} 26. g5 $1 {[%emt 0:02:22]} Be7 {[%emt 0:03:47]} 27. Bxe5 {[%emt 0:01:22]} dxe5 {[%emt 0:00:13]} 28. Qg3 {[%emt 0:01:11]} Qd6 {[%emt 0:03:16]} 29. Rcd1 {[%emt 0:02:21]} f6 {[%emt 0:01:28]} 30. gxf6 {[%emt 0:02:55]} Bxf6 {[%emt 0:00:32]} 31. Qxc3 {[%emt 0:00:36]} e4 {[%emt 0:00:45]} 32. Qe3 {[%emt 0:06:30]} Re8 {[%emt 0:02:25]} 33. c4 {[%emt 0:03:27]} Qa3 {[%emt 0:00:46]} (33... Kf7 $142 34. Rd2 Kg8) 34. Nd4 {[%emt 0:01:59]} a5 {[%emt 0:00:42]} 35. Qc1 $2 {[%emt 0:02:51]} (35. Rhf1) 35... Qc5 $2 {[%emt 0:01:27]} (35... Qd6 {is a better defense.} 36. Nc6 e3) 36. Ne6+ $11 {[%emt 0:00:21]} (36. Qf4 $18 Qa3 37. Rh2) 36... Rxe6 $1 {[%emt 0:00:10]} 37. dxe6 {[%emt 0:00:10]} Qe5 {[%emt 0:01:21]} 38. Qa3+ {[%emt 0:02:10]} Kg8 {[%emt 0:00:43]} 39. Rh3 {[%emt 0:02:51]} e3 {[%emt 0:01:27]} 40. Rhh1 $2 {[%emt 0:08:23]} (40. Rxe3 Qxe3 41. Qxa5) 40... Qa1+ {[%emt 0:02:44]} 41. Kc2 {[%emt 0:30:05]} Qc3+ {[%emt 0:30:18]} 42. Kb1 {[%emt 0:00:06]} Qa1+ {[%emt 0:01:36]} 43. Kc2 {[%emt 0:00:05]} 1/2-1/2

[Event "GER-ch Youth U14W 2020"]
[Site "Willingen"]
[Date "2020.10.21"]
[Round "2.4"]
[White "Sereda, Yaroslava"]
[Black "Schulz, Hannah"]
[Result "0-1"]
[ECO "B34"]
[WhiteElo "1756"]
[BlackElo "1589"]
[Annotator "NA RC"]
[PlyCount "76"]
[EventDate "2020.10.20"]
[EventType "swiss"]
[EventRounds "7"]
[EventCountry "GER"]
[SourceTitle "playchess.com"]
[Source "ChessBase"]
[SourceQuality "1"]
[TimeControl "40/5400+30:1800+30"]

1. e4 {[%emt 0:00:00]} c5 {[%emt 0:00:00]} 2. Nf3 {[%emt 0:00:00]} Nc6 {[%emt 0:00:00]} 3. d4 {[%emt 0:00:00]} cxd4 {[%emt 0:00:00]} 4. Nxd4 {[%emt 0:00:01]} g6 {[%emt 0:00:00]} 5. Nc3 {[%emt 0:00:15]} Bg7 {[%emt 0:00:00]} 6. Be3 {[%emt 0:00:11]} Nf6 {[%emt 0:00:06]} 7. Be2 {[%emt 0:00:15]} O-O {[%emt 0:00:05]} 8. Nb3 {[%emt 0:00:11]} a5 {[%emt 0:00:10]} 9. a4 {[%emt 0:04:07]} d5 {[%emt 0:00:38]} 10. exd5 {[%emt 0:05:02]} Nb4 {[%emt 0:01:56]} 11. Bf3 {[%emt 0:02:59]} e5 {[%emt 0:00:18]} 12. dxe6 {[%emt 0:39:29]} Bxe6 {[%emt 0:00:29]} 13. Nd4 {[%emt 0:06:36]} Bg4 {[%emt 0:20:43]} 14. O-O {[%emt 0:02:33]} Bxf3 {[%emt 0:00:58]} 15. Qxf3 {[%emt 0:00:23]} Nfd5 {[%emt 0:07:21]} 16. Nxd5 {[%emt 0:02:34]} Nxd5 {[%emt 0:00:16]} 17. Rad1 {[%emt 0:08:36]} Nxe3 {[%emt 0:02:20]} 18. Qxe3 {[%emt 0:12:15]} Qb6 {[%emt 0:04:14]} 19. c3 {[%emt 0:05:01]} Qxb2 {[%emt 0:07:04]} 20. Rb1 {[%emt 0:06:02]} Qa2 {[%emt 0:03:27]} 21. Rxb7 {[%emt 0:01:13]} Qxa4 {[%emt 0:00:49]} 22. Nb5 {[%emt 0:00:45]} Rab8 {[%emt 0:07:30]} 23. Qb6 {[%emt 0:01:11]} Rxb7 {[%emt 0:00:21]} 24. Qxb7 {[%emt 0:00:04]} Qb3 {[%emt 0:00:41]} 25. Qc6 {[%emt 0:01:04]} a4 {[%emt 0:00:49]} 26. Qa6 {[%emt 0:00:47]} Rb8 {[%emt 0:01:15]} 27. Nd6 {[%emt 0:01:16]} Bxc3 {[%emt 0:02:16]} 28. Nc4 {[%emt 0:00:30]} Bg7 {[%emt 0:04:42]} 29. Re1 {[%emt 0:00:33]} Bf8 {[%emt 0:01:29]} 30. h3 {[%emt 0:00:29]} a3 {[%emt 0:01:14]} 31. Ra1 {[%emt 0:00:29]} Qc3 {[%emt 0:01:37]} 32. Rd1 {[%emt 0:00:25]} Qc2 {[%emt 0:09:24]} 33. Ra1 {[%emt 0:00:39]} Rb1+ {[%emt 0:00:17]} 34. Rxb1 {[%emt 0:00:22]} Qxb1+ {[%emt 0:00:04]} 35. Kh2 {[%emt 0:00:09]} a2 {[%emt 0:00:25]} 36. Qf6 {[%emt 0:00:58]} a1=Q {[%emt 0:00:23]} 37. Ne5 {[%emt 0:00:10]} Qg1+ {[%emt 0:01:32]} 38. Kg3 {[%emt 0:00:07]} Qc3+ {[%emt 0:00:28]} 0-1

[Event "GER-ch Youth U14W 2020"]
[Site "Willingen"]
[Date "2020.10.21"]
[Round "2.5"]
[White "Wörz, Ann-Sophie"]
[Black "Voigt, Anastasia"]
[Result "1/2-1/2"]
[ECO "A14"]
[WhiteElo "1473"]
[BlackElo "1562"]
[Annotator "NA RC"]
[PlyCount "55"]
[EventDate "2020.10.20"]
[EventType "swiss"]
[EventRounds "7"]
[EventCountry "GER"]
[SourceTitle "playchess.com"]
[Source "ChessBase"]
[SourceQuality "1"]
[TimeControl "40/5400+30:1800+30"]

1. c4 {[%emt 0:00:00]} e6 {[%emt 0:00:01]} 2. g3 {[%emt 0:00:00]} d5 {[%emt 0:00:35]} 3. Bg2 {[%emt 0:00:00]} Nf6 {[%emt 0:00:17]} 4. Nf3 {[%emt 0:00:23]} Be7 {[%emt 0:00:41]} 5. O-O {[%emt 0:00:31]} O-O {[%emt 0:00:59]} 6. b3 {[%emt 0:01:36]} c5 {[%emt 0:01:51]} 7. cxd5 {[%emt 0:00:36]} exd5 {[%emt 0:01:04]} 8. d4 {[%emt 0:00:20]} b6 {[%emt 0:18:03]} 9. Nc3 {[%emt 0:02:37]} Bb7 {[%emt 0:03:47]} 10. Bb2 {[%emt 0:10:36]} Nbd7 {[%emt 0:02:11]} 11. Nh4 {[%emt 0:07:14]} Re8 {[%emt 0:19:37]} 12. Nf5 {[%emt 0:03:05]} Bf8 {[%emt 0:02:24]} 13. Nb5 {[%emt 0:09:56]} Bc6 {[%emt 0:02:31]} 14. Nc3 {[%emt 0:10:11]} g6 {[%emt 0:00:49]} 15. Ne3 {[%emt 0:00:43]} cxd4 {[%emt 0:01:34]} 16. Qxd4 {[%emt 0:01:07]} Bc5 {[%emt 0:00:24]} 17. Qd2 {[%emt 0:00:49]} Bxe3 {[%emt 0:03:07]} 18. fxe3 {[%emt 0:00:10]} Ne5 {[%emt 0:11:54]} 19. Rad1 {[%emt 0:02:26]} Neg4 {[%emt 0:12:41]} 20. Nxd5 {[%emt 0:08:04]} Bxd5 {[%emt 0:01:32]} 21. Bxf6 {[%emt 0:10:50]} Nxf6 {[%emt 0:03:27]} 22. Bxd5 {[%emt 0:02:12]} Nxd5 {[%emt 0:01:12]} 23. Qxd5 {[%emt 0:00:35]} Qxd5 {[%emt 0:02:01]} 24. Rxd5 {[%emt 0:00:03]} Rad8 {[%emt 0:00:31]} 25. e4 {[%emt 0:05:39]} Kf8 {[%emt 0:04:48]} 26. Kf2 {[%emt 0:00:31]} Rc8 {[%emt 0:01:43]} 27. Ke3 {[%emt 0:01:32]} Rc2 {[%emt 0:01:33]} 28. a4 {[%emt 0:00:11]} 1/2-1/2

[Event "GER-ch Youth U14W 2020"]
[Site "Willingen"]
[Date "2020.10.21"]
[Round "2.6"]
[White "Kanno, Clara Yumi"]
[Black "Werner, Rosalie"]
[Result "0-1"]
[ECO "C02"]
[WhiteElo "1127"]
[BlackElo "1688"]
[Annotator "NA RC"]
[PlyCount "60"]
[EventDate "2020.10.20"]
[EventType "swiss"]
[EventRounds "7"]
[EventCountry "GER"]
[SourceTitle "playchess.com"]
[Source "ChessBase"]
[SourceQuality "1"]
[TimeControl "40/5400+30:1800+30"]

1. e4 {[%emt 0:00:00]} e6 {[%emt 0:00:00]} 2. d4 {[%emt 0:00:04]} d5 {[%emt 0:00:00]} 3. e5 {[%emt 0:00:12]} c5 {[%emt 0:00:00]} 4. c3 {[%emt 0:00:55]} Qb6 {[%emt 0:01:52]} 5. a3 {[%emt 0:01:17]} Bd7 {[%emt 0:01:59]} 6. b4 {[%emt 0:03:44]} cxd4 {[%emt 0:02:21]} 7. cxd4 {[%emt 0:00:33]} Bb5 {[%emt 0:01:51]} 8. Be2 {[%emt 0:03:45]} Nc6 {[%emt 0:10:19]} 9. Bb2 {[%emt 0:04:52]} Bxe2 {[%emt 0:03:30]} 10. Nxe2 {[%emt 0:02:08]} Nge7 {[%emt 0:05:08]} 11. O-O {[%emt 0:04:26]} Nf5 {[%emt 0:01:07]} 12. Qd3 {[%emt 0:08:23]} Be7 {[%emt 0:02:29]} 13. Nd2 {[%emt 0:04:17]} O-O {[%emt 0:02:46]} 14. Nf3 {[%emt 0:07:28]} Rac8 {[%emt 0:04:53]} 15. g4 {[%emt 0:10:54]} Nh4 {[%emt 0:04:59]} 16. Rfd1 {[%emt 0:06:42]} a6 {[%emt 0:12:51]} 17. Bc1 {[%emt 0:04:46]} Nxf3+ {[%emt 0:04:36]} 18. Qxf3 {[%emt 0:00:43]} f6 {[%emt 0:04:18]} 19. Qg3 {[%emt 0:03:31]} fxe5 {[%emt 0:06:45]} 20. dxe5 {[%emt 0:00:24]} Nxe5 {[%emt 0:09:01]} 21. Be3 {[%emt 0:02:19]} Nf3+ {[%emt 0:02:46]} 22. Qxf3 {[%emt 0:02:58]} Qb5 {[%emt 0:03:13]} 23. a4 {[%emt 0:09:37]} Qc4 {[%emt 0:01:39]} 24. Qg3 {[%emt 0:01:38]} Qxe2 {[%emt 0:00:36]} 25. Rab1 {[%emt 0:01:05]} Rc4 {[%emt 0:01:28]} 26. Rd4 {[%emt 0:01:25]} Rxd4 {[%emt 0:01:41]} 27. Bxd4 {[%emt 0:00:06]} Qe4 {[%emt 0:00:24]} 28. Bc3 {[%emt 0:00:34]} Qxb1+ {[%emt 0:00:07]} 29. Kg2 {[%emt 0:00:25]} d4 {[%emt 0:00:33]} 30. Bd2 {[%emt 0:00:15]} Bxb4 {[%emt 0:01:02]} 0-1

[Event "GER-ch Youth U14W 2020"]
[Site "Willingen"]
[Date "2020.10.21"]
[Round "2.7"]
[White "Becker, Linda"]
[Black "Buchholz, Maja"]
[Result "0-1"]
[ECO "C14"]
[WhiteElo "1767"]
[BlackElo "1628"]
[Annotator "NA RC"]
[PlyCount "134"]
[EventDate "2020.10.20"]
[EventType "swiss"]
[EventRounds "7"]
[EventCountry "GER"]
[SourceTitle "playchess.com"]
[Source "ChessBase"]
[SourceQuality "1"]
[TimeControl "40/5400+30:1800+30"]

1. e4 {[%emt 0:00:00]} e6 {[%emt 0:00:00]} 2. d4 {[%emt 0:00:00]} d5 {[%emt 0:00:00]} 3. Nc3 {[%emt 0:00:00]} Nf6 {[%emt 0:00:00]} 4. Bg5 {[%emt 0:00:00]} Be7 {[%emt 0:00:31]} 5. e5 {[%emt 0:00:23]} Nfd7 {[%emt 0:00:07]} 6. Bxe7 {[%emt 0:00:11]} Qxe7 {[%emt 0:00:05]} 7. f4 {[%emt 0:01:31]} c5 {[%emt 0:00:21]} 8. Nb5 {[%emt 0:01:02]} Na6 {[%emt 0:01:04]} 9. Nd6+ {[%emt 0:00:27]} Kf8 {[%emt 0:00:11]} 10. Bxa6 {[%emt 0:00:17]} bxa6 {[%emt 0:00:10]} 11. Nf3 {[%emt 0:00:42]} f6 {[%emt 0:02:01]} 12. O-O {[%emt 0:02:43]} g6 {[%emt 0:01:39]} 13. Qd2 {[%emt 0:03:38]} Kg7 {[%emt 0:02:34]} 14. g4 {[%emt 0:04:53]} Rf8 {[%emt 0:05:04]} 15. Kh1 {[%emt 0:06:46]} Rb8 {[%emt 0:07:10]} 16. c3 {[%emt 0:04:08]} Bb7 {[%emt 0:05:18]} 17. Rf2 {[%emt 0:02:57]} Bc6 {[%emt 0:07:13]} 18. Rg1 {[%emt 0:04:47]} Kh8 {[%emt 0:11:22]} 19. Rg3 {[%emt 0:03:20]} a5 {[%emt 0:04:48]} 20. g5 {[%emt 0:01:45]} f5 {[%emt 0:03:21]} 21. h4 {[%emt 0:02:54]} a4 {[%emt 0:06:17]} 22. h5 {[%emt 0:03:18]} Kg7 {[%emt 0:00:39]} 23. Rh2 {[%emt 0:01:26]} Rh8 {[%emt 0:02:00]} 24. Rgh3 {[%emt 0:00:41]} c4 {[%emt 0:03:59]} 25. hxg6 {[%emt 0:02:02]} hxg6 {[%emt 0:00:08]} 26. Rxh8 {[%emt 0:00:30]} Rxh8 {[%emt 0:00:07]} 27. Rxh8 {[%emt 0:00:10]} Kxh8 {[%emt 0:00:04]} 28. Qh2+ {[%emt 0:00:09]} Kg8 {[%emt 0:02:01]} 29. Qh6 {[%emt 0:03:35]} Qh7 {[%emt 0:04:09]} 30. Qxh7+ {[%emt 0:00:41]} Kxh7 {[%emt 0:00:06]} 31. Nd2 {[%emt 0:01:24]} Kg7 {[%emt 0:04:41]} 32. Kg1 {[%emt 0:01:36]} Kf8 {[%emt 0:01:00]} 33. Kf2 {[%emt 0:00:19]} Nb6 {[%emt 0:03:16]} 34. Ke1 {[%emt 0:01:24]} a3 {[%emt 0:01:12]} 35. b3 {[%emt 0:05:46]} cxb3 {[%emt 0:04:47]} 36. Nxb3 {[%emt 0:00:09]} Ba4 {[%emt 0:01:26]} 37. Nd2 {[%emt 0:14:30]} Bc2 {[%emt 0:03:08]} 38. Nb5 {[%emt 0:00:28]} Bd3 {[%emt 0:03:48]} 39. Nxa3 {[%emt 0:01:49]} Na4 {[%emt 0:01:04]} 40. Ndb1 {[%emt 0:02:39]} Nb2 {[%emt 0:02:08]} 41. Kd2 {[%emt 0:31:43]} Ba6 {[%emt 0:31:11]} 42. Nc2 {[%emt 0:02:50]} Bc4 {[%emt 0:01:17]} 43. Nba3 {[%emt 0:08:00]} Bxa2 {[%emt 0:02:36]} 44. Nb4 {[%emt 0:00:34]} Bb3 {[%emt 0:02:14]} 45. Nd3 {[%emt 0:02:32]} Na4 {[%emt 0:04:07]} 46. Nc5 {[%emt 0:01:39]} Nxc5 {[%emt 0:00:16]} 47. dxc5 {[%emt 0:00:06]} a6 {[%emt 0:01:15]} 48. Ke3 {[%emt 0:03:50]} Ke7 {[%emt 0:00:53]} 49. Kd4 {[%emt 0:01:33]} Kd7 {[%emt 0:00:46]} 50. Nb1 {[%emt 0:01:17]} a5 {[%emt 0:00:00]} 51. Na3 {[%emt 0:00:00]} Kc6 {[%emt 0:00:00]} 52. Nb1 {[%emt 0:00:00]} Bd1 {[%emt 0:00:00]} 53. Na3 {[%emt 0:00:00]} Be2 {[%emt 0:00:00]} 54. Nc2 {[%emt 0:00:00]} Ba6 {[%emt 0:00:00]} 55. Na3 {[%emt 0:00:00]} Bb7 {[%emt 0:00:00]} 56. c4 {[%emt 0:00:00]} dxc4 {[%emt 0:00:00]} 57. Kxc4 Ba6+ {[%emt 0:00:00]} 58. Kd4 {[%emt 0:00:00]} Bb5 {[%emt 0:00:00]} 59. Nc2 {[%emt 0:00:00]} Ba4 {[%emt 0:00:00]} 60. Na3 {[%emt 0:00:00]} Bb3 {[%emt 0:00:00]} 61. Nb1 {[%emt 0:00:00]} Ba2 {[%emt 0:00:00]} 62. Na3 {[%emt 0:00:00]} Bd5 {[%emt 0:00:00]} 63. Nc2 {[%emt 0:00:00]} Kb5 {[%emt 0:00:00]} 64. Ne3 {[%emt 0:00:00]} Bc6 {[%emt 0:00:00]} 65. Nc2 {[%emt 0:00:00]} a4 {[%emt 0:00:00]} 66. Ke3 Kxc5 {[%emt 0:00:00]} 67. Na1 {[%emt 0:00:00]} Be4 {[%emt 0:00:00]} 0-1

[Event "GER-ch Youth U14W 2020"]
[Site "Willingen"]
[Date "2020.10.21"]
[Round "2.8"]
[White "Alferova, Emily"]
[Black "Hubert, Charlotte"]
[Result "1/2-1/2"]
[ECO "B92"]
[WhiteElo "1329"]
[BlackElo "1438"]
[Annotator "NA RC"]
[PlyCount "94"]
[EventDate "2020.10.20"]
[EventType "swiss"]
[EventRounds "7"]
[EventCountry "GER"]
[SourceTitle "playchess.com"]
[Source "ChessBase"]
[SourceQuality "1"]
[TimeControl "40/5400+30:1800+30"]

1. e4 {[%emt 0:00:00]} c5 {[%emt 0:00:00]} 2. Nf3 {[%emt 0:00:00]} d6 {[%emt 0:00:00]} 3. d4 {[%emt 0:00:04]} cxd4 {[%emt 0:00:08]} 4. Nxd4 {[%emt 0:00:05]} Nf6 {[%emt 0:00:18]} 5. Nc3 {[%emt 0:00:56]} a6 {[%emt 0:00:13]} 6. Be2 {[%emt 0:02:03]} e5 {[%emt 0:00:35]} 7. Nb3 {[%emt 0:02:43]} Be7 {[%emt 0:01:28]} 8. Be3 {[%emt 0:02:56]} Be6 {[%emt 0:01:35]} 9. O-O {[%emt 0:01:58]} O-O {[%emt 0:02:43]} 10. f4 {[%emt 0:06:29]} b5 {[%emt 0:09:16]} 11. f5 {[%emt 0:14:36]} Bd7 {[%emt 0:05:21]} 12. a3 {[%emt 0:04:32]} Bc6 {[%emt 0:04:39]} 13. Bf3 {[%emt 0:07:22]} Nbd7 {[%emt 0:06:50]} 14. Qe1 {[%emt 0:03:34]} a5 {[%emt 0:10:58]} 15. Qg3 {[%emt 0:07:25]} Kh8 {[%emt 0:04:45]} 16. Nd2 {[%emt 0:05:55]} b4 {[%emt 0:07:29]} 17. axb4 {[%emt 0:00:13]} axb4 {[%emt 0:00:10]} 18. Nd5 {[%emt 0:02:52]} Bxd5 {[%emt 0:03:28]} 19. exd5 {[%emt 0:00:15]} Qc7 {[%emt 0:03:20]} 20. Qh4 {[%emt 0:05:29]} Rxa1 {[%emt 0:11:28]} 21. Rxa1 {[%emt 0:00:06]} Nxd5 {[%emt 0:03:14]} 22. Qc4 {[%emt 0:04:08]} Qxc4 {[%emt 0:00:51]} 23. Nxc4 {[%emt 0:00:04]} Nxe3 {[%emt 0:00:15]} 24. Nxe3 {[%emt 0:00:06]} Nb6 {[%emt 0:11:10]} 25. Ra7 {[%emt 0:01:38]} Bg5 {[%emt 0:00:49]} 26. Kf2 {[%emt 0:06:13]} Bxe3+ {[%emt 0:02:13]} 27. Kxe3 {[%emt 0:00:12]} d5 {[%emt 0:04:17]} 28. Rb7 {[%emt 0:02:40]} Nc4+ {[%emt 0:00:19]} 29. Kf2 {[%emt 0:00:36]} e4 {[%emt 0:02:06]} 30. Be2 {[%emt 0:00:26]} Nd6 {[%emt 0:00:56]} 31. Rxb4 {[%emt 0:02:04]} Nxf5 {[%emt 0:00:33]} 32. g4 {[%emt 0:00:30]} Ne7 {[%emt 0:00:47]} 33. Rb7 {[%emt 0:03:01]} Nc6 {[%emt 0:00:49]} 34. Rb6 {[%emt 0:06:52]} Nd4 {[%emt 0:01:27]} 35. c3 {[%emt 0:01:29]} Nxe2 {[%emt 0:00:19]} 36. Kxe2 {[%emt 0:00:10]} Rd8 {[%emt 0:00:15]} 37. Ke3 {[%emt 0:00:44]} g6 {[%emt 0:00:14]} 38. Rb4 {[%emt 0:03:44]} Kg7 {[%emt 0:01:53]} 39. Rd4 {[%emt 0:00:31]} f5 {[%emt 0:00:50]} 40. gxf5 {[%emt 0:00:36]} gxf5 {[%emt 0:00:05]} 41. c4 {[%emt 0:31:51]} Kf6 {[%emt 0:31:47]} 42. Kf4 {[%emt 0:00:00]} Ke6 {[%emt 0:00:00]} 43. b4 {[%emt 0:00:00]} Rd6 {[%emt 0:00:00]} 44. c5 {[%emt 0:00:00]} Rc6 {[%emt 0:00:00]} 45. Rd1 {[%emt 0:00:00]} h6 {[%emt 0:00:00]} 46. h3 {[%emt 0:00:00]} Ra6 {[%emt 0:00:00]} 47. Rg1 {[%emt 0:00:00]} Kf6 {[%emt 0:00:00]} 1/2-1/2

[Event "GER-ch Youth U14W 2020"]
[Site "Willingen"]
[Date "2020.10.21"]
[Round "2.9"]
[White "Fischer, Darja"]
[Black "Lorenz, Anouk"]
[Result "1-0"]
[ECO "A85"]
[WhiteElo "1598"]
[BlackElo "1504"]
[Annotator "NA RC"]
[PlyCount "55"]
[EventDate "2020.10.20"]
[EventType "swiss"]
[EventRounds "7"]
[EventCountry "GER"]
[SourceTitle "playchess.com"]
[Source "ChessBase"]
[SourceQuality "1"]
[TimeControl "40/5400+30:1800+30"]

1. d4 {[%emt 0:00:00]} f5 {[%emt 0:00:00]} 2. c4 {[%emt 0:00:27]} Nf6 {[%emt 0:00:00]} 3. Nc3 {[%emt 0:00:06]} g6 {[%emt 0:00:00]} 4. g3 {[%emt 0:00:13]} Bg7 {[%emt 0:00:00]} 5. Bg2 {[%emt 0:00:12]} O-O {[%emt 0:00:08]} 6. Nf3 {[%emt 0:00:16]} d6 {[%emt 0:00:09]} 7. O-O {[%emt 0:00:10]} Qe8 {[%emt 0:00:05]} 8. Re1 {[%emt 0:00:41]} Na6 {[%emt 0:00:49]} 9. e4 {[%emt 0:01:44]} Nxe4 {[%emt 0:07:59]} 10. Nxe4 {[%emt 0:00:37]} fxe4 {[%emt 0:00:07]} 11. Rxe4 {[%emt 0:00:21]} Bf5 {[%emt 0:00:11]} 12. Re2 {[%emt 0:08:21]} Bg4 {[%emt 0:06:43]} 13. Qb3 {[%emt 0:05:09]} Rb8 {[%emt 0:16:42]} 14. Bg5 {[%emt 0:08:14]} e5 {[%emt 0:12:53]} 15. dxe5 {[%emt 0:07:43]} Bxe5 {[%emt 0:18:13]} 16. Rae1 {[%emt 0:05:15]} Nc5 {[%emt 0:08:14]} 17. Qa3 {[%emt 0:03:50]} Nd7 {[%emt 0:06:46]} 18. Nxe5 {[%emt 0:14:26]} Nxe5 {[%emt 0:00:58]} 19. Bd5+ {[%emt 0:05:58]} Kh8 {[%emt 0:01:56]} 20. Re3 {[%emt 0:04:25]} Qd7 {[%emt 0:05:16]} 21. f4 {[%emt 0:01:29]} Qf5 {[%emt 0:08:17]} 22. Qc3 {[%emt 0:04:42]} c6 {[%emt 0:03:52]} 23. Be4 {[%emt 0:07:20]} Qf7 {[%emt 0:00:31]} 24. Bh6 {[%emt 0:01:26]} Rfe8 {[%emt 0:00:49]} 25. fxe5 {[%emt 0:00:27]} dxe5 {[%emt 0:00:29]} 26. Bf4 {[%emt 0:01:21]} Qg7 {[%emt 0:01:08]} 27. Bg2 {[%emt 0:00:37]} e4 {[%emt 0:00:32]} 28. Bxb8 {[%emt 0:01:11]} 1-0

[Event "GER-ch Youth U14W 2020"]
[Site "Willingen"]
[Date "2020.10.21"]
[Round "2.10"]
[White "Roncea, Andrea-Alexandra"]
[Black "Petersen, Sophie"]
[Result "1-0"]
[ECO "B51"]
[WhiteElo "1644"]
[BlackElo "1524"]
[Annotator "NA RC"]
[PlyCount "69"]
[EventDate "2020.10.20"]
[EventType "swiss"]
[EventRounds "7"]
[EventCountry "GER"]
[SourceTitle "playchess.com"]
[Source "ChessBase"]
[SourceQuality "1"]
[TimeControl "40/5400+30:1800+30"]

1. e4 {[%emt 0:00:00]} c5 {[%emt 0:00:00]} 2. Nf3 {[%emt 0:00:00]} d6 {[%emt 0:00:00]} 3. Bb5+ {[%emt 0:00:00]} Nd7 {[%emt 0:00:00]} 4. O-O {[%emt 0:00:01]} a6 {[%emt 0:00:04]} 5. Bd3 {[%emt 0:00:11]} Ngf6 {[%emt 0:00:34]} 6. c3 {[%emt 0:00:38]} b5 {[%emt 0:00:47]} 7. Bc2 {[%emt 0:00:21]} Bb7 {[%emt 0:01:06]} 8. Re1 {[%emt 0:00:33]} e6 {[%emt 0:00:55]} 9. d4 {[%emt 0:01:48]} Be7 {[%emt 0:01:08]} 10. a4 {[%emt 0:03:57]} O-O {[%emt 0:05:32]} 11. Nbd2 {[%emt 0:08:49]} Qc7 {[%emt 0:03:52]} 12. Nf1 {[%emt 0:07:15]} Rfc8 {[%emt 0:02:11]} 13. axb5 {[%emt 0:04:13]} axb5 {[%emt 0:00:30]} 14. Rxa8 {[%emt 0:00:46]} Bxa8 {[%emt 0:02:39]} 15. Bd3 {[%emt 0:08:44]} Rb8 {[%emt 0:12:22]} 16. Bg5 {[%emt 0:10:24]} e5 {[%emt 0:08:12]} 17. d5 {[%emt 0:04:30]} Qd8 {[%emt 0:11:15]} 18. Bxf6 {[%emt 0:04:42]} Bxf6 {[%emt 0:02:39]} 19. Ne3 {[%emt 0:02:54]} g6 {[%emt 0:02:16]} 20. Qc2 {[%emt 0:02:34]} c4 {[%emt 0:02:38]} 21. Bf1 {[%emt 0:03:23]} Nc5 {[%emt 0:00:48]} 22. Nd2 {[%emt 0:02:55]} Rc8 {[%emt 0:14:20]} 23. Ra1 {[%emt 0:06:18]} Qb6 {[%emt 0:01:44]} 24. Qd1 {[%emt 0:05:13]} Na4 {[%emt 0:04:03]} 25. Ndxc4 {[%emt 0:12:31]} Qc7 {[%emt 0:07:42]} 26. Na3 {[%emt 0:01:20]} Nxb2 {[%emt 0:07:31]} 27. Qf3 {[%emt 0:01:43]} Be7 {[%emt 0:03:25]} 28. Nxb5 {[%emt 0:00:56]} Qb6 {[%emt 0:02:08]} 29. Qe2 {[%emt 0:03:46]} Nc4 {[%emt 0:00:42]} 30. Na7 {[%emt 0:00:47]} Rc7 {[%emt 0:00:56]} 31. Nxc4 {[%emt 0:00:13]} Qc5 {[%emt 0:00:43]} 32. Nb5 {[%emt 0:01:12]} Qxb5 {[%emt 0:00:46]} 33. Rxa8+ {[%emt 0:00:08]} Kg7 {[%emt 0:00:07]} 34. Nxd6 {[%emt 0:01:39]} Qxe2 35. Ne8+ {[%emt 0:00:09]} 1-0